fUST/lending_fUST_20240803
["ID","MTS","AMOUNT","RATE_DAILY","PERIOD"]
[333999234,1722672641201,-231.2118877,0.00013698,2]
[333999236,1722672641211,-500.0,0.00013698,2]
[333999238,1722672641219,-500.0,0.00013698,2]
[333999240,1722672641229,-500.0,0.00013698,2]
[333999242,1722672641240,-377.30956451,0.00013698,2]
[333999244,1722672641251,-500.0,0.00013698,2]
[333999246,1722672641262,-504.46646769,0.00013698,2]
[333999248,1722672641272,-500.0,0.00013698,2]
[333999250,1722672641283,-185.19096211,0.00013698,2]
[333999252,1722672641294,-447.8323181,0.00013698,2]
[333999254,1722672641304,-526.34,0.00013698,2]
[333999256,1722672641315,-194.97135761,0.00013698,2]
[333999259,1722672641327,-272.78777853,0.00013698,2]
[333999261,1722672641338,-500.0,0.00013698,2]
[333999263,1722672641349,-500.0,0.00013698,2]
[333999265,1722672641359,-500.0,0.00013698,2]
[333999267,1722672641370,-500.0,0.00013698,2]
[333999270,1722672641390,-503.01767572,0.00013698,2]
[333999272,1722672641402,-500.0,0.00013698,2]
[333999275,1722672641413,-500.0,0.00013698,2]
[333999277,1722672641424,-500.0,0.00013698,2]
[333999279,1722672641436,-500.0,0.00013698,2]
[333999281,1722672641445,-500.0,0.00013698,2]
[333999283,1722672641455,-500.0,0.00013698,2]
[333999285,1722672641466,-500.0,0.00013698,2]
[333999287,1722672641477,-500.0,0.00013698,2]
[333999289,1722672641488,-500.0,0.00013698,2]
[333999291,1722672641499,-500.0,0.00013698,2]
[333999293,1722672641510,-518.87141673,0.00013698,2]
[333999295,1722672641519,-500.0,0.00013698,2]
[333999297,1722672641530,-500.0,0.00013698,2]
[333999299,1722672641539,-500.0,0.00013698,2]
[333999301,1722672641550,-500.0,0.00013698,2]
[333999303,1722672641561,-500.0,0.00013698,2]
[333999305,1722672641573,-500.0,0.00013698,2]
[333999307,1722672641583,-500.0,0.00013698,2]
[333999310,1722672641595,-500.0,0.00013698,2]
[333999311,1722672641604,-500.0,0.00013698,2]
[333999313,1722672641614,-500.0,0.00013698,2]
[333999315,1722672641624,-621.80644506,0.00013698,2]
[333999317,1722672641633,-500.0,0.00013698,2]
[333999319,1722672641644,-500.0,0.00013698,2]
[333999321,1722672641655,-415.46381484,0.00013698,2]
[333999324,1722672641667,-500.0,0.00013698,2]
[333999326,1722672641678,-500.0,0.00013698,2]
[333999328,1722672641690,-500.0,0.00013698,2]
[333999330,1722672641702,-264.65147372,0.00013698,2]
[333999332,1722672641713,-278.02057295,0.00013698,2]
[333999335,1722672641725,-500.0,0.00013698,2]
[333999337,1722672641737,-432.38462124,0.00013698,2]
[333999339,1722672641748,-500.0,0.00013698,2]
[333999341,1722672641759,-500.0,0.00013698,2]
[333999343,1722672641769,-500.0,0.00013698,2]
[333999345,1722672641778,-500.0,0.00013698,2]
[333999346,1722672641788,-500.0,0.00013698,2]
[333999348,1722672641798,-500.0,0.00013698,2]
[333999351,1722672641808,-500.0,0.00013698,2]
[333999352,1722672641817,-500.0,0.00013698,2]
[333999354,1722672641827,-500.0,0.00013698,2]
[333999357,1722672641839,-500.0,0.00013698,2]
[333999358,1722672641848,-399.18452482,0.00013698,2]
[333999361,1722672641858,-500.0,0.00013698,2]
[333999363,1722672641868,-500.0,0.00013698,2]
[333999365,1722672641877,-500.0,0.00013698,2]
[333999367,1722672641887,-500.0,0.00013698,2]
[333999368,1722672641896,-500.0,0.00013698,2]
[333999371,1722672641905,-500.0,0.00013698,2]
[333999373,1722672641915,-503.67513818,0.00013698,2]
[333999375,1722672641925,-500.0,0.00013698,2]
[333999377,1722672641935,-635.97742348,0.00013698,2]
[333999379,1722672641944,-504.8569476,0.00013698,2]
[333999381,1722672641955,-501.07944614,0.00013698,2]
[333999383,1722672641965,-502.67353918,0.00013698,2]
[333999385,1722672641975,-500.0,0.00013698,2]
[333999387,1722672641986,-500.0,0.00013698,2]
[333999389,1722672641996,-329.68998401,0.00013698,2]
[333999391,1722672642006,-500.0,0.00013698,2]
[333999393,1722672642017,-500.0,0.00013698,2]
[333999395,1722672642028,-502.19877842,0.00013698,2]
[333999397,1722672642038,-151.0,0.00013698,2]
[333999399,1722672642047,-500.0,0.00013698,2]
[333999401,1722672642056,-500.0,0.00013698,2]
[333999403,1722672642066,-500.0,0.00013698,2]
[333999405,1722672642077,-383.2498869,0.00013698,2]
[333999407,1722672642089,-501.37581479,0.00013698,2]
[333999409,1722672642100,-506.19120385,0.00013698,2]
[333999412,1722672642112,-153.203548,0.00013698,2]
[333999414,1722672642122,-500.0,0.00013698,2]
[333999416,1722672642132,-500.0,0.00013698,2]
[333999418,1722672642143,-554.21286629,0.00013698,2]
[333999420,1722672642154,-503.1686396,0.00013698,2]
[333999422,1722672642165,-500.23485866,0.00013698,2]
[333999424,1722672642176,-500.0,0.00013698,2]
[333999426,1722672642187,-500.0,0.00013698,2]
[333999428,1722672642198,-500.0,0.00013698,2]
[333999431,1722672642212,-680.24,0.00013698,2]
[333999433,1722672642222,-500.0,0.00013698,2]
[333999435,1722672642233,-500.0,0.00013698,2]
[333999437,1722672642243,-500.0,0.00013698,2]
[333999440,1722672642254,-503.27230899,0.00013698,2]
[333999442,1722672642264,-500.0,0.00013698,2]
[333999445,1722672642275,-500.0,0.00013698,2]
[333999447,1722672642288,-500.0,0.00013698,2]
[333999449,1722672642299,-501.40327288,0.00013698,2]
[333999451,1722672642310,-500.0,0.00013698,2]
[333999453,1722672642320,-500.0,0.00013698,2]
[333999455,1722672642331,-500.0,0.00013698,2]
[333999458,1722672642343,-542.15017006,0.00013698,2]
[333999460,1722672642353,-500.0,0.00013698,2]
[333999462,1722672642363,-500.0,0.00013698,2]
[333999464,1722672642373,-500.0,0.00013698,2]
[333999466,1722672642383,-505.4,0.00013698,2]
[333999468,1722672642392,-500.0,0.00013698,2]
[333999470,1722672642401,-500.0,0.00013698,2]
[333999472,1722672642411,-500.0,0.00013698,2]
[333999474,1722672642420,-500.0,0.00013698,2]
[333999476,1722672642431,-597.16655605,0.00013698,2]
[333999478,1722672642440,-502.13144408,0.00013698,2]
[333999480,1722672642450,-298.29774428,0.00013698,2]
[333999482,1722672642460,-500.0,0.00013698,2]
[333999484,1722672642470,-166.92801832,0.00013698,2]
[333999486,1722672642480,-503.37012291,0.00013698,2]
[333999488,1722672642489,-500.0,0.00013698,2]
[333999490,1722672642501,-362.02501254,0.00013698,2]
[333999492,1722672642512,-500.0,0.00013698,2]
[333999494,1722672642521,-503.0087459,0.00013698,2]
[333999496,1722672642531,-500.0,0.00013698,2]
[333999498,1722672642541,-443.54149847,0.00013698,2]
[333999500,1722672642552,-500.0,0.00013698,2]
[333999502,1722672642562,-503.4325015,0.00013698,2]
[333999504,1722672642572,-500.0,0.00013698,2]
[333999506,1722672642585,-500.0,0.00013698,2]
[333999508,1722672642595,-500.0,0.00013698,2]
[333999510,1722672642605,-500.0,0.00013698,2]
[333999512,1722672642614,-500.0,0.00013698,2]
[333999514,1722672642625,-184.18705617,0.00013698,2]
[333999517,1722672642636,-500.0,0.00013698,2]
[333999519,1722672642647,-522.31356701,0.00013698,2]
[333999521,1722672642657,-503.9952865,0.00013698,2]
[333999523,1722672642667,-500.0,0.00013698,2]
[333999525,1722672642678,-500.0,0.00013698,2]
[333999527,1722672642688,-507.1117221,0.00013698,2]
[333999529,1722672642698,-151.0,0.00013698,2]
[333999531,1722672642707,-500.9047467,0.00013698,2]
[333999533,1722672642717,-500.0,0.00013698,2]
[333999535,1722672642727,-151.0,0.00013698,2]
[333999537,1722672642737,-500.0,0.00013698,2]
[333999539,1722672642749,-500.0,0.00013698,2]
[333999541,1722672642759,-500.0,0.00013698,2]
[333999543,1722672642770,-500.0,0.00013698,2]
[333999556,1722672642780,-388.96379123,0.00013698,2]
[333999558,1722672642894,-500.0,0.00013698,2]
[333999560,1722672642903,-500.0,0.00013698,2]
[333999562,1722672642912,-151.0,0.00013698,2]
[333999564,1722672642922,-506.66305378,0.00013698,2]
[333999566,1722672642932,-500.0,0.00013698,2]
[333999568,1722672642942,-151.0,0.00013698,2]
[333999570,1722672642951,-500.0,0.00013698,2]
[333999573,1722672642961,-500.0,0.00013698,2]
[333999576,1722672642970,-253.39550413,0.00013698,2]
[333999579,1722672642980,-519.41162688,0.00013698,2]
[333999582,1722672642989,-500.0,0.00013698,2]
[333999585,1722672642999,-500.02586365,0.00013698,2]
[333999587,1722672643008,-500.0,0.00013698,2]
[333999589,1722672643017,-500.0,0.00013698,2]
[333999591,1722672643026,-500.0,0.00013698,2]
[333999593,1722672643035,-504.18482772,0.00013698,2]
[333999596,1722672643045,-543.10242154,0.00013698,2]
[333999598,1722672643053,-503.3226659,0.00013698,2]
[333999600,1722672643063,-500.0,0.00013698,2]
[333999602,1722672643073,-500.0,0.00013698,2]
[333999603,1722672643082,-500.0,0.00013698,2]
[333999605,1722672643091,-500.0,0.00013698,2]
[333999607,1722672643100,-500.0,0.00013698,2]
[333999609,1722672643109,-500.0,0.00013698,2]
[333999611,1722672643119,-500.0,0.00013698,2]
[333999613,1722672643129,-500.0,0.00013698,2]
[333999615,1722672643138,-549.74,0.00013698,2]
[333999616,1722672643148,-500.0,0.00013698,2]
[333999617,1722672643157,-514.90195416,0.00013698,2]
[333999618,1722672643166,-500.0,0.00013698,2]
[333999619,1722672643175,-503.70317355,0.00013698,2]
[333999620,1722672643185,-667.84,0.00013698,2]
[333999621,1722672643194,-542.89512703,0.00013698,2]
[333999622,1722672643203,-500.0,0.00013698,2]
[333999623,1722672643212,-500.0,0.00013698,2]
[333999625,1722672643221,-501.02669427,0.00013698,2]
[333999627,1722672643230,-505.60774106,0.00013698,2]
[333999629,1722672643240,-500.0,0.00013698,2]
[333999630,1722672643249,-500.0,0.00013698,2]
[333999632,1722672643259,-501.58892371,0.00013698,2]
[333999635,1722672643269,-501.01393807,0.00013698,2]
[333999637,1722672643278,-504.91443185,0.00013698,2]
[333999639,1722672643287,-500.0,0.00013698,2]
[333999641,1722672643296,-500.0,0.00013698,2]
[333999643,1722672643306,-500.0,0.00013698,2]
[333999645,1722672643315,-500.0,0.00013698,2]
[333999647,1722672643325,-500.0,0.00013698,2]
[333999649,1722672643334,-507.16044617,0.00013698,2]
[333999651,1722672643344,-502.48619921,0.00013698,2]
[333999653,1722672643354,-529.8246672,0.00013698,2]
[333999655,1722672643363,-500.0,0.00013698,2]
[333999657,1722672643372,-500.0,0.00013698,2]
[333999659,1722672643382,-500.0,0.00013698,2]
[333999661,1722672643391,-500.0,0.00013698,2]
[333999663,1722672643401,-503.2399212,0.00013698,2]
[333999665,1722672643410,-506.02308493,0.00013698,2]
[333999667,1722672643419,-500.0,0.00013698,2]
[333999669,1722672643430,-500.0,0.00013698,2]
[333999671,1722672643439,-500.0,0.00013698,2]
[333999673,1722672643448,-500.0,0.00013698,2]
[333999675,1722672643459,-500.0,0.00013698,2]
[333999677,1722672643468,-500.0,0.00013698,2]
[333999679,1722672643477,-500.0,0.00013698,2]
[333999681,1722672643486,-500.0,0.00013698,2]
[333999683,1722672643497,-501.04584901,0.00013698,2]
[333999685,1722672643509,-500.0,0.00013698,2]
[333999687,1722672643518,-500.0,0.00013698,2]
[333999689,1722672643527,-514.34763915,0.00013698,2]
[333999691,1722672643537,-500.0,0.00013698,2]
[333999693,1722672643546,-508.08071063,0.00013698,2]
[333999695,1722672643555,-502.62511725,0.00013698,2]
[333999697,1722672643565,-571.4297123,0.00013698,2]
[333999699,1722672643574,-501.81288566,0.00013698,2]
[333999701,1722672643584,-500.0,0.00013698,2]
[333999704,1722672643595,-500.0,0.00013698,2]
[333999706,1722672643604,-500.0,0.00013698,2]
[333999708,1722672643613,-506.31900691,0.00013698,2]
[333999710,1722672643623,-501.12752463,0.00013698,2]
[333999712,1722672643632,-500.0,0.00013698,2]
[333999714,1722672643642,-500.0,0.00013698,2]
[333999716,1722672643651,-500.0,0.00013698,2]
[333999718,1722672643660,-500.0,0.00013698,2]
[333999720,1722672643670,-500.0,0.00013698,2]
[333999722,1722672643680,-500.0,0.00013698,2]
[333999723,1722672643689,-500.0,0.00013698,2]
[333999726,1722672643698,-502.3387285,0.00013698,2]
[333999728,1722672643707,-500.0,0.00013698,2]
[333999730,1722672643717,-500.0,0.00013698,2]
[333999732,1722672643726,-911.93,0.00013698,2]
[333999733,1722672643735,-500.0,0.00013698,2]
[333999735,1722672643744,-500.0,0.00013698,2]
[333999738,1722672643755,-500.55305366,0.00013698,2]
[333999740,1722672643764,-390.86600594,0.00013698,2]
[333999742,1722672643773,-505.5090072,0.00013698,2]
[333999744,1722672643783,-511.95552001,0.00013698,2]
[333999746,1722672643792,-500.0,0.00013698,2]
[333999748,1722672643802,-500.0,0.00013698,2]
[333999750,1722672643813,-500.0,0.00013698,2]
[333999752,1722672643823,-504.732386,0.00013698,2]
[333999754,1722672643834,-500.0,0.00013698,2]
[333999756,1722672643843,-500.0,0.00013698,2]
[333999758,1722672643853,-500.0,0.00013698,2]
[333999760,1722672643862,-500.0,0.00013698,2]
[333999762,1722672643872,-500.6614948,0.00013698,2]
[333999764,1722672643881,-500.0,0.00013698,2]
[333999766,1722672643890,-500.0,0.00013698,2]
[333999768,1722672643900,-151.830209,0.00013698,2]
[333999770,1722672643910,-500.0,0.00013698,2]
[333999773,1722672643921,-502.71709055,0.00013698,2]
[333999775,1722672643933,-500.0,0.00013698,2]
[333999777,1722672643944,-500.0,0.00013698,2]
[333999779,1722672643955,-502.8675988,0.00013698,2]
[333999781,1722672643965,-193.6297432,0.00013698,2]
[333999783,1722672643975,-500.0,0.00013698,2]
[333999786,1722672643988,-541.87180591,0.00013698,2]
[333999788,1722672643999,-500.0,0.00013698,2]
[333999790,1722672644010,-500.0,0.00013698,2]
[333999792,1722672644020,-344.33587548,0.00013698,2]
[333999794,1722672644031,-500.0,0.00013698,2]
[333999797,1722672644042,-504.92247799,0.00013698,2]
[333999799,1722672644054,-501.2042597,0.00013698,2]
[333999801,1722672644063,-501.94553414,0.00013698,2]
[333999803,1722672644074,-500.0,0.00013698,2]
[333999805,1722672644083,-461.0832888,0.00013698,2]
[333999807,1722672644094,-500.0,0.00013698,2]
[333999809,1722672644103,-500.0,0.00013698,2]
[333999812,1722672644115,-500.0,0.00013698,2]
[333999814,1722672644126,-500.0,0.00013698,2]
[333999816,1722672644138,-500.0,0.00013698,2]
[333999818,1722672644149,-500.0,0.00013698,2]
[333999820,1722672644159,-500.0,0.00013698,2]
[333999823,1722672644171,-500.0,0.00013698,2]
[333999825,1722672644183,-506.21082323,0.00013698,2]
[333999827,1722672644194,-427.37261873,0.00013698,2]
[333999829,1722672644205,-500.0,0.00013698,2]
[333999831,1722672644215,-500.0,0.00013698,2]
[333999834,1722672644226,-500.0,0.00013698,2]
[333999836,1722672644239,-500.0,0.00013698,2]
[333999838,1722672644249,-500.0,0.00013698,2]
[333999840,1722672644259,-500.0,0.00013698,2]
[333999842,1722672644269,-501.18022568,0.00013698,2]
[333999844,1722672644280,-151.0,0.00013698,2]
[333999846,1722672644290,-151.0,0.00013698,2]
[333999848,1722672644300,-342.125284,0.00013698,2]
[333999850,1722672644312,-151.259361,0.00013698,2]
[333999853,1722672644322,-342.125284,0.00013698,2]
[333999855,1722672644335,-829.64,0.00013698,2]
[333999857,1722672644345,-501.04256428,0.00013698,2]
[333999859,1722672644356,-500.0,0.00013698,2]
[333999861,1722672644366,-500.0,0.00013698,2]
[333999863,1722672644377,-151.0,0.00013698,2]
[333999866,1722672644389,-500.0,0.00013698,2]
[333999868,1722672644400,-7486.07,0.00013698,2]
[333999870,1722672644410,-500.0,0.00013698,2]
[333999872,1722672644422,-539.75,0.00013698,2]
[333999874,1722672644434,-151.0,0.00013698,2]
[333999876,1722672644447,-500.0,0.00013698,2]
[333999878,1722672644457,-500.0,0.00013698,2]
[333999880,1722672644467,-500.0,0.00013698,2]
[333999882,1722672644477,-500.0,0.00013698,2]
[333999884,1722672644488,-805.98,0.00013698,2]
[333999886,1722672644500,-500.0,0.00013698,2]
[333999888,1722672644511,-500.0,0.00013698,2]
[333999890,1722672644521,-500.0,0.00013698,2]
[333999893,1722672644533,-500.0,0.00013698,2]
[333999895,1722672644543,-507.82098782,0.00013698,2]
[333999897,1722672644554,-500.0,0.00013698,2]
[333999899,1722672644566,-3026.57,0.00013698,2]
[333999901,1722672644576,-291.540619,0.00013698,2]
[333999904,1722672644588,-532.63,0.00013698,2]
[333999906,1722672644599,-291.540619,0.00013698,2]
[333999908,1722672644611,-500.0,0.00013698,2]
[333999918,1722672644690,-500.0,0.00013698,2]
[333999920,1722672644709,-543.23371565,0.00013698,2]
[333999922,1722672644718,-500.0,0.00013698,2]
[333999924,1722672644728,-500.0,0.00013698,2]
[333999926,1722672644738,-151.0,0.00013698,2]
[333999928,1722672644747,-500.0,0.00013698,2]
[333999930,1722672644756,-610.11,0.00013698,2]
[333999932,1722672644765,-500.0,0.00013698,2]
[333999934,1722672644775,-500.89833952,0.00013698,2]
[333999936,1722672644785,-500.0,0.00013698,2]
[333999938,1722672644794,-1240.99,0.00013698,2]
[333999940,1722672644803,-500.0,0.00013698,2]
[333999942,1722672644812,-176.439896,0.00013698,2]
[333999945,1722672644830,-500.0,0.00013698,2]
[333999947,1722672644843,-508.13792565,0.00013698,2]
[333999950,1722672644855,-4211.79,0.00013698,2]
[333999952,1722672644866,-500.0,0.00013698,2]
[333999954,1722672644876,-877.44,0.00013698,2]
[333999956,1722672644886,-500.0,0.00013698,2]
[333999958,1722672644897,-500.0,0.00013698,2]
[333999960,1722672644907,-500.0,0.00013698,2]
[333999962,1722672644918,-517.45085263,0.00013698,2]
[333999965,1722672644931,-500.0,0.00013698,2]
[333999967,1722672644943,-1121.54,0.00013698,2]
[333999969,1722672644953,-500.0,0.00013698,2]
[333999971,1722672644965,-738.36,0.00013698,2]
[333999974,1722672644976,-500.0,0.00013698,2]
[333999976,1722672644988,-500.0,0.00013698,2]
[333999978,1722672644998,-500.0,0.00013698,2]
[333999980,1722672645010,-500.0,0.00013698,2]
[333999983,1722672645021,-500.0,0.00013698,2]
[333999985,1722672645031,-500.0,0.00013698,2]
[333999987,1722672645042,-500.0,0.00013698,2]
[333999989,1722672645052,-500.0,0.00013698,2]
[333999991,1722672645062,-500.0,0.00013698,2]
[333999993,1722672645072,-510.46133776,0.00013698,2]
[333999996,1722672645083,-509.97900109,0.00013698,2]
[333999998,1722672645095,-502.87523652,0.00013698,2]
[334000000,1722672645106,-500.0,0.00013698,2]
[334000002,1722672645116,-1209.24,0.00013698,2]
[334000004,1722672645128,-769.5,0.00013698,2]
[334000007,1722672645139,-503.44149162,0.00013698,2]
[334000009,1722672645149,-870.86,0.00013698,2]
[334000011,1722672645158,-508.39845061,0.00013698,2]
[334000013,1722672645168,-2026.77,0.00013698,2]
[334000015,1722672645178,-774.83,0.00013698,2]
[334000017,1722672645188,-501.07907325,0.00013698,2]
[334000019,1722672645198,-503.47063227,0.00013698,2]
[334000021,1722672645208,-500.0,0.00013698,2]
[334000023,1722672645217,-500.0,0.00013698,2]
[334000025,1722672645227,-500.0,0.00013698,2]
[334000027,1722672645237,-500.0,0.00013698,2]
[334000030,1722672645246,-329.04185234,0.00013698,2]
[334000032,1722672645256,-500.0,0.00013698,2]
[334000034,1722672645266,-500.0,0.00013698,2]
[334000036,1722672645276,-504.39572741,0.00013698,2]
[334000038,1722672645286,-460.998413,0.00013698,2]
[334000040,1722672645296,-500.0,0.00013698,2]
[334000042,1722672645307,-515.17605677,0.00013698,2]
[334000044,1722672645317,-319.94342,0.00013698,2]
[334000046,1722672645327,-460.998413,0.00013698,2]
[334000048,1722672645338,-500.0,0.00013698,2]
[334000050,1722672645348,-506.00803671,0.00013698,2]
[334000053,1722672645358,-500.0,0.00013698,2]
[334000056,1722672645368,-500.0,0.00013698,2]
[334000058,1722672645378,-5560.35,0.00013698,2]
[334000060,1722672645388,-500.0,0.00013698,2]
[334000062,1722672645398,-506.36099112,0.00013698,2]
[334000064,1722672645407,-319.94342,0.00013698,2]
[334000066,1722672645417,-500.0,0.00013698,2]
[334000068,1722672645426,-540.98,0.00013698,2]
[334000070,1722672645437,-500.0,0.00013698,2]
[334000072,1722672645449,-500.0,0.00013698,2]
[334000074,1722672645460,-500.0,0.00013698,2]
[334000076,1722672645471,-500.0,0.00013698,2]
[334000079,1722672645481,-500.0,0.00013698,2]
[334000081,1722672645494,-867.0,0.00013698,2]
[334000083,1722672645510,-500.0,0.00013698,2]
[334000085,1722672645521,-838.27,0.00013698,2]
[334000088,1722672645532,-739.340672,0.00013698,2]
[334000090,1722672645543,-151.0,0.00013698,2]
[334000092,1722672645552,-999.17,0.00013698,2]
[334000094,1722672645563,-151.0,0.00013698,2]
[334000096,1722672645575,-500.0,0.00013698,2]
[334000098,1722672645585,-500.0,0.00013698,2]
[334000100,1722672645595,-500.0,0.00013698,2]
[334000102,1722672645605,-502.40879419,0.00013698,2]
[334000104,1722672645614,-739.340672,0.00013698,2]
[334000106,1722672645624,-500.0,0.00013698,2]
[334000108,1722672645635,-1757.41,0.00013698,2]
[334000111,1722672645648,-181.20532155,0.00013698,2]
[334000113,1722672645661,-500.0,0.00013698,2]
[334000115,1722672645673,-519.72007247,0.00013698,2]
[334000118,1722672645685,-500.0,0.00013698,2]
[334000120,1722672645696,-500.0,0.00013698,2]
[334000122,1722672645707,-500.0,0.00013698,2]
[334000124,1722672645718,-500.0,0.00013698,2]
[334000126,1722672645730,-500.0,0.00013698,2]
[334000129,1722672645741,-709.709307,0.00013698,2]
[334000131,1722672645752,-500.0,0.00013698,2]
[334000133,1722672645763,-1400.28,0.00013698,2]
[334000135,1722672645775,-709.709307,0.00013698,2]
[334000137,1722672645785,-151.0,0.00013698,2]
[334000139,1722672645796,-252.635338,0.00013698,2]
[334000141,1722672645806,-522.54,0.00013698,2]
[334000143,1722672645816,-151.0,0.00013698,2]
[334000146,1722672645827,-505.1,0.00013698,2]
[334000148,1722672645840,-252.635338,0.00013698,2]
[334000150,1722672645851,-500.0,0.00013698,2]
[334000152,1722672645860,-500.0,0.00013698,2]
[334000154,1722672645871,-500.0,0.00013698,2]
[334000156,1722672645882,-506.72900474,0.00013698,2]
[334000158,1722672645892,-504.00307471,0.00013698,2]
[334000160,1722672645902,-500.0,0.00013698,2]
[334000163,1722672645913,-500.0,0.00013698,2]
[334000165,1722672645924,-500.0,0.00013698,2]
[334000167,1722672645936,-500.0,0.00013698,2]
[334000169,1722672645947,-500.0,0.00013698,2]
[334000171,1722672645957,-500.0,0.00013698,2]
[334000173,1722672645966,-2316.83,0.00013698,2]
[334000175,1722672645976,-500.0,0.00013698,2]
[334000177,1722672645985,-500.0,0.00013698,2]
[334000179,1722672645995,-500.0,0.00013698,2]
[334000181,1722672646006,-505.68206609,0.00013698,2]
[334000183,1722672646016,-500.0,0.00013698,2]
[334000185,1722672646026,-500.0,0.00013698,2]
[334000187,1722672646036,-500.0,0.00013698,2]
[334000189,1722672646046,-500.0,0.00013698,2]
[334000191,1722672646056,-500.0,0.00013698,2]
[334000193,1722672646066,-602.99,0.00013698,2]
[334000195,1722672646076,-500.0,0.00013698,2]
[334000197,1722672646086,-500.46436097,0.00013698,2]
[334000199,1722672646096,-500.0,0.00013698,2]
[334000201,1722672646106,-500.0,0.00013698,2]
[334000203,1722672646118,-500.0,0.00013698,2]
[334000205,1722672646130,-506.96171622,0.00013698,2]
[334000207,1722672646142,-500.0,0.00013698,2]
[334000209,1722672646152,-1643.41,0.00013698,2]
[334000211,1722672646162,-657.2,0.00013698,2]
[334000213,1722672646173,-500.0,0.00013698,2]
[334000215,1722672646183,-500.0,0.00013698,2]
[334000217,1722672646193,-500.0,0.00013698,2]
[334000219,1722672646203,-273.17894821,0.00013698,2]
[334000222,1722672646214,-500.0,0.00013698,2]
[334000224,1722672646224,-500.0,0.00013698,2]
[334000226,1722672646235,-506.11215054,0.00013698,2]
[334000228,1722672646246,-500.0,0.00013698,2]
[334000230,1722672646258,-500.0,0.00013698,2]
[334000232,1722672646268,-1531.07,0.00013698,2]
[334000234,1722672646280,-151.0,0.00013698,2]
[334000236,1722672646290,-500.0,0.00013698,2]
[334000238,1722672646301,-500.0,0.00013698,2]
[334000240,1722672646311,-151.225038,0.00013698,2]
[334000242,1722672646321,-1588.46,0.00013698,2]
[334000244,1722672646331,-500.0,0.00013698,2]
[334000246,1722672646342,-6235.73,0.00013698,2]
[334000249,1722672646353,-834.77,0.00013698,2]
[334000251,1722672646365,-500.0,0.00013698,2]
[334000253,1722672646378,-1164.61,0.00013698,2]
[334000264,1722672646476,-500.0,0.00013698,2]
[334000266,1722672646488,-501.51688979,0.00013698,2]
[334000268,1722672646501,-553.71,0.00013698,2]
[334000270,1722672646511,-500.0,0.00013698,2]
[334000272,1722672646521,-500.92981252,0.00013698,2]
[334000274,1722672646530,-500.0,0.00013698,2]
[334000276,1722672646540,-500.0,0.00013698,2]
[334000278,1722672646550,-500.0,0.00013698,2]
[334000280,1722672646559,-500.0,0.00013698,2]
[334000282,1722672646571,-194.95092,0.00013698,2]
[334000284,1722672646585,-151.0,0.00013698,2]
[334000286,1722672646596,-1362.52,0.00013698,2]
[334000288,1722672646607,-194.95092,0.00013698,2]
[334000290,1722672646618,-500.0,0.00013698,2]
[334000292,1722672646630,-512.58577606,0.00013698,2]
[334000294,1722672646640,-500.0,0.00013698,2]
[334000297,1722672646652,-151.0,0.00013698,2]
[334000299,1722672646666,-1543.89,0.00013698,2]